[Event "SWE-ch Masters Elite 2019"]
[Site "Eskilstuna"]
[Date "2019.07.13"]
[Round "8.5"]
[White "Lindberg, Bengt"]
[Black "Seo, Jung Min"]
[Result "1-0"]
[ECO "C13"]
[WhiteElo "2384"]
[BlackElo "2399"]
[Annotator "NA"]
[PlyCount "122"]
[EventDate "2019.07.06"]
[EventType "tourn"]
[EventCountry "SWE"]
[SourceTitle "playchess.com"]
[Source "ChessBase"]
[SourceQuality "1"]
[TimeControl "40/5400+30:1800+30"]

1. e4 {[%emt 0:00:00]} e6 {[%emt 0:00:00]} 2. d4 {[%emt 0:00:00]} d5 {[%emt 0:00:00]} 3. Nc3 {[%emt 0:00:13]} Nf6 {[%emt 0:01:22]} 4. Bg5 {[%emt 0:00:10]} dxe4 {[%emt 0:02:15]} 5. Nxe4 {[%emt 0:00:13]} Be7 {[%emt 0:00:02]} 6. Bxf6 {[%emt 0:01:08]} gxf6 {[%emt 0:00:17]} 7. Nf3 {[%emt 0:01:33]} a6 {[%emt 0:07:45]} 8. c4 {[%emt 0:01:18]} O-O {[%emt 0:07:07]} 9. Qd2 {[%emt 0:04:00]} f5 {[%emt 0:00:45]} 10. Nc3 {[%emt 0:00:14]} c5 {[%emt 0:06:24]} 11. d5 {[%emt 0:00:31]} Bf6 {[%emt 0:00:04]} 12. O-O-O {[%emt 0:04:47]} e5 {[%emt 0:04:53]} 13. h4 {[%emt 0:07:47]} b5 {[%emt 0:04:42]} 14. d6 {[%emt 0:12:14]} Be6 {[%emt 0:07:06]} 15. g4 {[%emt 0:06:02]} fxg4 {[%emt 0:08:42]} 16. Ng5 {[%emt 0:00:58]} Bf5 {[%emt 0:01:31]} 17. Bg2 {[%emt 0:11:12]} Ra7 {[%emt 0:01:33]} 18. Be4 {[%emt 0:01:15]} Bg6 {[%emt 0:04:57]} 19. Bxg6 {[%emt 0:03:24]} hxg6 {[%emt 0:00:05]} 20. Nce4 {[%emt 0:11:31]} Nc6 {[%emt 0:02:52]} 21. h5 {[%emt 0:01:52]} Bxg5 {[%emt 0:01:29]} 22. Nxg5 {[%emt 0:00:03]} Nd4 {[%emt 0:02:42]} 23. hxg6 {[%emt 0:15:53]} fxg6 {[%emt 0:00:15]} 24. Rh6 {[%emt 0:00:04]} Qxd6 {[%emt 0:06:48]} 25. Rdh1 {[%emt 0:01:48]} Qf6 {[%emt 0:00:22]} 26. Nh7 {[%emt 0:01:21]} Rxh7 {[%emt 0:01:29]} 27. Rxh7 {[%emt 0:00:02]} Qf4 {[%emt 0:00:07]} 28. Rh8+ {[%emt 0:06:13]} Kf7 {[%emt 0:01:09]} 29. Qxf4+ {[%emt 0:00:50]} exf4 {[%emt 0:00:01]} 30. Rxf8+ {[%emt 0:00:13]} Kxf8 {[%emt 0:00:01]} 31. cxb5 {[%emt 0:00:46]} axb5 {[%emt 0:00:10]} 32. Rh4 {[%emt 0:05:02]} Kf7 {[%emt 0:04:49]} 33. Rxg4 {[%emt 0:00:16]} Ne6 {[%emt 0:00:00]} 34. Kd1 {[%emt 0:01:20]} Kf6 {[%emt 0:00:14]} 35. Rh4 {[%emt 0:00:37]} g5 {[%emt 0:00:14]} 36. Rh8 {[%emt 0:00:23]} Kf5 {[%emt 0:00:31]} 37. Ke2 {[%emt 0:01:00]} g4 {[%emt 0:00:27]} 38. Re8 {[%emt 0:01:25]} Ke5 {[%emt 0:02:24]} 39. a3 {[%emt 0:01:01]} Kf5 {[%emt 0:02:33]} 40. Ke1 {[%emt 0:00:45]} c4 {[%emt 0:03:33]} 41. Kf1 {[%emt 0:04:23]} Nd4 {[%emt 0:00:56]} 42. Re7 {[%emt 0:01:15]} Ne6 {[%emt 0:06:49]} 43. Rb7 {[%emt 0:01:58]} Nd4 {[%emt 0:00:09]} 44. Rc7 {[%emt 0:01:08]} Nb3 {[%emt 0:01:53]} 45. a4 {[%emt 0:03:09]} bxa4 {[%emt 0:00:04]} 46. Ke1 {[%emt 0:00:10]} Ke4 {[%emt 0:19:57]} 47. Rxc4+ {[%emt 0:01:02]} Nd4 {[%emt 0:01:16]} 48. Kf1 {[%emt 0:08:14]} g3 {[%emt 0:00:29]} 49. Rxa4 {[%emt 0:02:03]} gxf2 {[%emt 0:00:14]} 50. Rc4 {[%emt 0:01:34]} Kd5 {[%emt 0:01:16]} 51. Rc3 {[%emt 0:00:22]} Nb5 {[%emt 0:00:10]} 52. Rc1 {[%emt 0:00:17]} Nd4 {[%emt 0:01:54]} 53. Kxf2 {[%emt 0:01:16]} Nb3 {[%emt 0:00:03]} 54. Rc3 {[%emt 0:01:07]} Nc5 {[%emt 0:00:07]} 55. Kf3 {[%emt 0:01:27]} Na4 {[%emt 0:00:05]} 56. Rc2 {[%emt 0:00:13]} Kd4 {[%emt 0:00:09]} 57. b4 {[%emt 0:04:33]} Nb6 {[%emt 0:00:04]} 58. b5 {[%emt 0:00:25]} Kd5 {[%emt 0:00:06]} 59. Kxf4 {[%emt 0:00:41]} Na8 {[%emt 0:00:08]} 60. Rc6 {[%emt 0:00:18]} Kd4 {[%emt 0:00:05]} 61. Kf5 {[%emt 0:00:34]} Kd5 {[%emt 0:00:08] Ke4+} 1-0

[Event "SWE-ch Masters Elite 2019"]
[Site "Eskilstuna"]
[Date "2019.07.14"]
[Round "9.1"]
[White "Malmstig, Erik"]
[Black "Cramling, Dan"]
[Result "1-0"]
[ECO "A42"]
[WhiteElo "2357"]
[BlackElo "2321"]
[Annotator "NA"]
[PlyCount "139"]
[EventDate "2019.07.06"]
[EventType "tourn"]
[EventCountry "SWE"]
[SourceTitle "playchess.com"]
[Source "ChessBase"]
[SourceQuality "1"]
[TimeControl "40/5400+30:1800+30"]

1. d4 {[%emt 0:01:48]} g6 {[%emt 0:03:47]} 2. c4 {[%emt 0:00:00]} d6 {[%emt 0:00:18]} 3. Nc3 {[%emt 0:00:00]} Bg7 {[%emt 0:00:19]} 4. e4 {[%emt 0:00:03]} e5 {[%emt 0:00:38]} 5. d5 {[%emt 0:01:14]} f5 {[%emt 0:02:03]} 6. exf5 {[%emt 0:10:40]} gxf5 {[%emt 0:00:11]} 7. Qh5+ {[%emt 0:00:51]} Kf8 {[%emt 0:00:31]} 8. f4 {[%emt 0:00:39] A42: Modern Defence: Averbakh Variation} (8. g3 $14) (8. Bd3 Ne7 9. Bg5 Qe8 10. Qxe8+ Kxe8 11. f3 Na6 12. Nge2 Bd7 13. O-O-O Nb4 14. Bb1 a5 15. Rhg1 h5 16. g3 {1-0 (74) Riazantsev,A (2646)-Bachmann,A (2593) Berlin 2015}) 8... Nf6 {[%emt 0:03:41]} 9. Qh4 {[%emt 0:00:56]} Na6 $146 {[%emt 0:01:24]} ({Predecessor:} 9... Kf7 10. fxe5 dxe5 11. c5 Rf8 12. Bc4 Kg8 13. Nf3 Nbd7 14. c6 Nb6 15. d6+ Kh8 {1-0 (36) Zimmermann,U (2276)-Mons,L (2402) Hannover 2013}) 10. fxe5 {[%emt 0:06:05]} dxe5 {[%emt 0:01:45]} 11. Bh6 {[%emt 0:00:04]} Qe7 {[%emt 0:05:26]} 12. O-O-O {[%emt 0:02:37]} Bd7 {[%emt 0:11:22]} 13. h3 {[%emt 0:12:19]} Re8 {[%emt 0:23:10]} 14. Be2 {[%emt 0:09:03]} Nc5 {[%emt 0:05:42]} 15. Bxg7+ {[%emt 0:09:37]} Kxg7 {[%emt 0:06:00]} 16. Qg5+ {[%emt 0:01:07]} Kf7 {[%emt 0:00:55]} 17. d6 {[%emt 0:05:09]} cxd6 {[%emt 0:05:21]} 18. Nd5 {[%emt 0:03:20]} Nxd5 {[%emt 0:00:24]} 19. Bh5+ {[%emt 0:00:15]} Kf8 {[%emt 0:00:09]} 20. Qh6+ {[%emt 0:00:59]} Qg7 {[%emt 0:00:09]} 21. Qxd6+ {[%emt 0:04:54]} Re7 {[%emt 0:01:01]} 22. g4 {[%emt 0:01:15]} Qg5+ {[%emt 0:16:10]} 23. Kb1 {[%emt 0:01:36]} Ne4 {[%emt 0:01:59]} 24. Qxd5 {[%emt 0:02:32]} Bc6 {[%emt 0:03:29]} 25. Qa5 {[%emt 0:01:16]} b6 {[%emt 0:03:48]} 26. Qe1 {[%emt 0:01:09]} Nd2+ {[%emt 0:00:49]} 27. Rxd2 {[%emt 0:00:42]} Bxh1 {[%emt 0:00:10]} 28. Ne2 {[%emt 0:01:22]} Be4+ {[%emt 0:01:28]} 29. Ka1 {[%emt 0:00:14]} Qe3 {[%emt 0:00:16]} 30. gxf5 {[%emt 0:02:24]} Bxf5 {[%emt 0:00:54]} 31. Rd6 {[%emt 0:01:31]} Re6 {[%emt 0:00:32]} 32. Rd7 {[%emt 0:01:11]} Rg6 {[%emt 0:00:55]} 33. Rxa7 {[%emt 0:04:29]} Rhg8 {[%emt 0:01:12]} 34. Bxg6 {[%emt 0:01:43]} Rxg6 {[%emt 0:00:04]} 35. a4 {[%emt 0:07:21]} Rg2 {[%emt 0:00:40]} 36. Qb4+ {[%emt 0:02:30]} Qc5 {[%emt 0:00:04]} 37. Qxc5+ {[%emt 0:00:58]} (37. Qd2 $16 {[%cal Rd2d8]} Qg1+ 38. Ka2 Qb1+ 39. Kb3 Qd3+ 40. Qxd3 Bxd3 41. Nc3) 37... bxc5 {[%emt 0:00:01]} 38. Nc3 {[%emt 0:00:10]} Bd3 {[%emt 0:00:09]} 39. b3 {[%emt 0:01:58]} e4 {[%emt 0:01:34]} 40. Nd5 {[%emt 0:01:15]} Rg1+ {[%emt 0:00:35]} 41. Kb2 {[%emt 0:30:14]} Rg2+ {[%emt 0:30:11]} 42. Kc1 {[%emt 0:00:00]} Rc2+ {[%emt 0:00:00]} 43. Kd1 $14 {[%emt 0:00:00]} Rb2 {[%emt 0:00:00]} 44. Rc7 {[%emt 0:00:00]} Rb1+ {[%emt 0:00:00]} 45. Kd2 {[%emt 0:00:00]} Rb2+ {[%emt 0:00:00]} 46. Ke1 {[%emt 0:00:00]} e3 {[%emt 0:00:00]} 47. Nxe3 {[%emt 0:00:00]} Re2+ {[%emt 0:00:00]} 48. Kd1 {[%emt 0:00:00]} Rxe3 {[%emt 0:00:00]} 49. Kd2 {[%emt 0:00:00]} Rxh3 {[%emt 0:00:00]} 50. Rxc5 {[%emt 0:00:00]} Be4 {[%emt 0:00:00]} 51. Re5 {[%emt 0:00:00]} Bg2 {[%emt 0:00:00]} 52. b4 {[%emt 0:00:00]} Ra3 {[%emt 0:00:00]} 53. a5 {[%emt 0:00:00]} Kf7 {[%emt 0:00:00]} 54. Kc2 {[%emt 0:00:00]} Kf6 {[%emt 0:00:03]} 55. Re8 {[%emt 0:00:00]} h5 {[%emt 0:04:10]} 56. Kb2 {[%emt 0:00:00]} Rg3 {[%emt 0:00:21]} 57. a6 {[%emt 0:00:41]} Rg7 {[%emt 0:02:29]} 58. Rh8 {[%emt 0:02:09]} Bf3 {[%emt 0:01:04]} 59. b5 {[%emt 0:01:15]} Kg5 {[%emt 0:01:18]} 60. b6 {[%emt 0:01:03]} h4 {[%emt 0:00:37]} 61. Kc3 {[%emt 0:02:40]} Kg4 {[%emt 0:00:26]} 62. c5 {[%emt 0:01:08]} h3 {[%emt 0:00:34]} 63. a7 {[%emt 0:01:21]} Rg6 {[%emt 0:00:35]} 64. a8=Q {[%emt 0:01:02]} Bxa8 {[%emt 0:00:03]} 65. Rxa8 {[%emt 0:00:07]} Rg5 {[%emt 0:00:37]} 66. Kd4 {[%emt 0:01:54]} h2 {[%emt 0:00:44]} 67. Ra1 {[%emt 0:00:08]} Kf3 {[%emt 0:00:32]} 68. b7 {[%emt 0:00:29]} Rg1 {[%emt 0:00:14]} 69. b8=Q {[%emt 0:00:11]} Rxa1 {[%emt 0:00:29]} 70. Qxh2 {[%emt 0:00:06] Ke4+ Kxe4} 1-0

[Event "SWE-ch Masters Elite 2019"]
[Site "Eskilstuna"]
[Date "2019.07.14"]
[Round "9.2"]
[White "Wengholm, Anders"]
[Black "Logdahl, Harald"]
[Result "0-1"]
[ECO "A86"]
[WhiteElo "2219"]
[BlackElo "2269"]
[Annotator "ChessBase"]
[PlyCount "90"]
[EventDate "2019.07.06"]
[EventType "tourn"]
[EventCountry "SWE"]
[SourceTitle "playchess.com"]
[Source "ChessBase"]
[SourceQuality "1"]
[TimeControl "40/5400+30:1800+30"]

1. c4 {[%emt 0:00:00]} f5 {[%emt 0:06:56]} 2. g3 {[%emt 0:00:50]} g6 {[%emt 0:00:17]} 3. d4 {[%emt 0:01:55]} Nf6 {[%emt 0:00:07]} 4. Bg2 {[%emt 0:00:08]} Bg7 {[%emt 0:00:04]} 5. Nc3 {[%emt 0:00:09]} O-O {[%emt 0:00:06]} 6. b3 {[%emt 0:06:44]} d6 {[%emt 0:00:26]} 7. Ba3 {[%emt 0:00:21]} a5 {[%emt 0:01:52]} 8. Rc1 {[%emt 0:04:23]} Na6 {[%emt 0:00:42]} 9. Nh3 {[%emt 0:02:26]} Nb4 {[%emt 0:00:52]} 10. O-O {[%emt 0:00:32]} c6 {[%emt 0:01:20]} 11. d5 {[%emt 0:00:49]} Bd7 {[%emt 0:09:20]} 12. Qd2 {[%emt 0:17:15]} Kh8 {[%emt 0:23:55]} 13. Bb2 {[%emt 0:07:35]} Na6 {[%emt 0:04:24]} 14. e4 {[%emt 0:11:12]} cxd5 {[%emt 0:25:16]} 15. exd5 {[%emt 0:02:56]} Nc5 {[%emt 0:03:07]} 16. Rfe1 {[%emt 0:02:23]} Qb6 {[%emt 0:03:40]} 17. Rxe7 {[%emt 0:01:41]} Rae8 {[%emt 0:01:35]} 18. Rxe8 {[%emt 0:00:49]} Rxe8 {[%emt 0:00:05]} 19. Rb1 {[%emt 0:02:05]} Kg8 {[%emt 0:00:35]} 20. Nf4 {[%emt 0:08:07]} Kf7 {[%emt 0:06:56]} 21. Qc2 {[%emt 0:07:42]} Bh6 {[%emt 0:01:56]} 22. Ne6 {[%emt 0:01:27]} Nxe6 {[%emt 0:01:04]} 23. dxe6+ {[%emt 0:00:14]} Bxe6 {[%emt 0:00:14]} 24. Nb5 {[%emt 0:00:53]} Ng4 {[%emt 0:04:43]} 25. Rd1 {[%emt 0:01:13]} Be3 {[%emt 0:01:46]} 26. Bd4 {[%emt 0:02:57]} Bxd4 {[%emt 0:00:09]} 27. Rxd4 {[%emt 0:04:46]} d5 {[%emt 0:00:59]} 28. Bxd5 {[%emt 0:01:00]} Bxd5 {[%emt 0:00:10]} 29. Rxd5 {[%emt 0:00:06]} Re1+ {[%emt 0:00:15]} 30. Kg2 {[%emt 0:00:03]} Ne3+ {[%emt 0:01:16]} 31. fxe3 {[%emt 0:00:16]} Qxe3 {[%emt 0:00:04]} 32. Rxf5+ {[%emt 0:04:44]} gxf5 {[%emt 0:00:19]} 33. Qxf5+ {[%emt 0:00:21]} Kg7 {[%emt 0:00:36]} 34. Qg4+ {[%emt 0:01:30]} Kf6 {[%emt 0:00:27]} 35. Qh4+ {[%emt 0:03:46]} Kg7 {[%emt 0:00:01]} 36. Qg4+ {[%emt 0:00:12]} Kf6 {[%emt 0:00:12]} 37. Qh4+ {[%emt 0:00:08]} Kg6 {[%emt 0:01:45]} 38. Qg4+ {[%emt 0:02:31]} Qg5 {[%emt 0:00:24]} 39. Qxg5+ {[%emt 0:00:15]} Kxg5 {[%emt 0:00:05]} 40. Nd4 {[%emt 0:02:30]} Ra1 {[%emt 0:00:14]} 41. Kf3 {[%emt 0:30:40]} Rxa2 {[%emt 0:30:27]} 42. h4+ {[%emt 0:00:10]} Kf6 {[%emt 0:00:18]} 43. Kf4 {[%emt 0:00:00]} h5 {[%emt 0:00:00]} 44. g4 {[%emt 0:00:00]} hxg4 {[%emt 0:00:00]} 45. Kxg4 {[%emt 0:00:00]} a4 {[%emt 0:00:00]} 0-1

[Event "SWE-ch Masters Elite 2019"]
[Site "Eskilstuna"]
[Date "2019.07.14"]
[Round "9.3"]
[White "Andersson, Tommy"]
[Black "Nyander, Joakim"]
[Result "1/2-1/2"]
[ECO "A30"]
[WhiteElo "2390"]
[BlackElo "2233"]
[Annotator "NA"]
[PlyCount "161"]
[EventDate "2019.07.06"]
[EventType "tourn"]
[EventCountry "SWE"]
[SourceTitle "playchess.com"]
[Source "ChessBase"]
[SourceQuality "1"]
[TimeControl "40/5400+30:1800+30"]

1. g3 {[%emt 0:00:00]} c5 {[%emt 0:01:53]} 2. Bg2 {[%emt 0:00:00]} e6 {[%emt 0:00:33]} 3. c4 {[%emt 0:00:01]} Nf6 {[%emt 0:02:27]} 4. b3 {[%emt 0:01:36]} Be7 {[%emt 0:01:41]} 5. Bb2 {[%emt 0:00:06]} O-O {[%emt 0:00:38]} 6. Nh3 {[%emt 0:01:07]} a6 {[%emt 0:02:03]} 7. O-O {[%emt 0:02:46]} d6 {[%emt 0:01:07]} 8. e3 {[%emt 0:03:34]} Nbd7 {[%emt 0:08:17]} 9. Nc3 {[%emt 0:03:14]} Rb8 {[%emt 0:02:33]} 10. a4 {[%emt 0:00:13]} b6 {[%emt 0:04:17]} 11. d4 {[%emt 0:27:44]} cxd4 {[%emt 0:04:39]} 12. exd4 {[%emt 0:00:12]} Re8 {[%emt 0:05:49]} 13. Nf4 {[%emt 0:03:21]} Nf8 {[%emt 0:10:11]} 14. Re1 {[%emt 0:03:25]} Bd7 {[%emt 0:01:47]} 15. Nd3 {[%emt 0:12:29]} Qc8 {[%emt 0:12:42]} 16. Rc1 {[%emt 0:03:59]} Bc6 {[%emt 0:07:09]} 17. d5 {[%emt 0:10:56]} Bb7 {[%emt 0:01:22]} 18. Bh3 {[%emt 0:01:39]} Qd8 {[%emt 0:04:11]} 19. dxe6 {[%emt 0:04:58]} Nxe6 {[%emt 0:01:15]} 20. Bxe6 {[%emt 0:06:33]} fxe6 {[%emt 0:00:10]} 21. Rxe6 {[%emt 0:00:28]} Qd7 {[%emt 0:03:34]} 22. Re1 {[%emt 0:03:59]} Qc6 {[%emt 0:02:57]} 23. f3 {[%emt 0:00:59]} Qxf3 {[%emt 0:03:48]} 24. Qxf3 {[%emt 0:00:11]} Bxf3 {[%emt 0:00:03]} 25. Ba3 {[%emt 0:00:36]} Kf7 {[%emt 0:05:35]} 26. Nf4 {[%emt 0:01:04]} Bf8 {[%emt 0:02:28]} 27. Rf1 {[%emt 0:02:36]} Re3 {[%emt 0:02:31]} 28. Rc2 {[%emt 0:00:47]} Kg8 {[%emt 0:01:05]} 29. Bc1 {[%emt 0:02:00]} Be4 {[%emt 0:01:27]} 30. Nxe4 {[%emt 0:00:55]} Rxe4 {[%emt 0:00:04]} 31. Bb2 {[%emt 0:00:29]} Ng4 {[%emt 0:01:15]} 32. h3 {[%emt 0:01:28]} Ne5 {[%emt 0:00:33]} 33. Nd5 {[%emt 0:01:37]} Nd3 {[%emt 0:01:36]} 34. Ba1 {[%emt 0:00:21]} Nc5 {[%emt 0:00:28]} 35. Rc3 {[%emt 0:00:02]} b5 {[%emt 0:00:28]} 36. axb5 {[%emt 0:00:40]} axb5 {[%emt 0:00:10]} 37. cxb5 {[%emt 0:00:51]} Rxb5 $16 {[%emt 0:01:07]} 38. b4 {[%emt 0:01:28]} Ne6 {[%emt 0:00:12]} 39. Rd3 {[%emt 0:00:26]} Rb8 {[%emt 0:00:53]} 40. Bc3 {[%emt 0:00:35]} Re2 {[%emt 0:01:41]} 41. h4 {[%emt 0:04:36]} Rb7 {[%emt 0:08:19]} 42. Rdf3 {[%emt 0:00:58]} Re4 {[%emt 0:01:16]} 43. h5 {[%emt 0:02:15]} h6 {[%emt 0:01:08]} 44. Rf5 {[%emt 0:02:26]} Rg4 {[%emt 0:03:45]} 45. Kg2 {[%emt 0:01:13]} Rg5 {[%emt 0:00:32]} 46. R1f3 {[%emt 0:05:40]} Rxf5 {[%emt 0:01:08]} 47. Rxf5 {[%emt 0:00:05]} Rf7 {[%emt 0:00:33]} 48. g4 {[%emt 0:00:06]} Rb7 {[%emt 0:02:52]} 49. b5 {[%emt 0:03:39]} Be7 {[%emt 0:06:34]} 50. b6 {[%emt 0:02:32]} Bd8 {[%emt 0:00:53]} 51. Rf1 {[%emt 0:00:51]} Nc5 {[%emt 0:01:20]} 52. Ba5 {[%emt 0:05:13]} Nb3 {[%emt 0:02:09]} 53. Bb4 {[%emt 0:00:12]} Nc5 {[%emt 0:01:23]} 54. Bxc5 {[%emt 0:03:39]} dxc5 {[%emt 0:00:03]} 55. Ra1 {[%emt 0:00:27]} Rb8 {[%emt 0:01:25]} 56. Ra6 {[%emt 0:00:54]} c4 {[%emt 0:00:29]} 57. Kf3 {[%emt 0:00:39]} Kf7 {[%emt 0:02:03]} 58. Ke4 {[%emt 0:01:19]} c3 {[%emt 0:00:42]} 59. Kd3 {[%emt 0:01:37]} Ke6 {[%emt 0:00:23]} 60. Nc7+ {[%emt 0:00:23]} Ke5 {[%emt 0:00:57]} 61. Ra5+ {[%emt 0:01:46]} Kd6 {[%emt 0:01:04]} 62. Ne8+ {[%emt 0:00:29]} Kc6 {[%emt 0:00:14]} 63. Nxg7 {[%emt 0:00:17]} Bf6 {[%emt 0:01:31]} 64. Ne6 {[%emt 0:00:25]} Re8 {[%emt 0:00:58]} 65. b7 {[%emt 0:00:44]} Kxb7 {[%emt 0:00:26]} 66. Nf4 {[%emt 0:00:36]} Rg8 {[%emt 0:01:50]} 67. Rf5 {[%emt 0:00:11]} Bh8 {[%emt 0:00:42]} 68. Ng6 {[%emt 0:00:44]} Rd8+ {[%emt 0:00:16]} 69. Kc2 {[%emt 0:00:29]} Rd2+ {[%emt 0:00:20]} 70. Kc1 {[%emt 0:00:12]} Bd4 {[%emt 0:00:11]} 71. Rd5 {[%emt 0:00:27]} Be3 {[%emt 0:00:35]} 72. Rxd2 {[%emt 0:00:03]} cxd2+ {[%emt 0:00:09]} 73. Kd1 {[%emt 0:00:08]} Kc7 {[%emt 0:00:20]} 74. Ne5 {[%emt 0:00:40]} Bf4 {[%emt 0:01:20]} 75. Nf3 {[%emt 0:01:10]} Kd6 {[%emt 0:00:38]} 76. g5 {[%emt 0:00:42]} Bxg5 {[%emt 0:01:10]} 77. Nxg5 {[%emt 0:00:18]} Ke5 {[%emt 0:00:14]} 78. Nf7+ {[%emt 0:00:55]} Kf6 {[%emt 0:00:27]} 79. Nxh6 {[%emt 0:00:22]} Kg5 {[%emt 0:00:06]} 80. Ng4 {[%emt 0:00:09]} Kxh5 {[%emt 0:00:09]} 81. Kxd2 {[%emt 0:00:07]} 1/2-1/2

[Event "SWE-ch Masters Elite 2019"]
[Site "Eskilstuna"]
[Date "2019.07.14"]
[Round "9.4"]
[White "Ernst, Thomas"]
[Black "Lindberg, Bengt"]
[Result "0-1"]
[ECO "B47"]
[WhiteElo "2335"]
[BlackElo "2384"]
[Annotator "NA"]
[PlyCount "159"]
[EventDate "2019.07.06"]
[EventType "tourn"]
[EventCountry "SWE"]
[SourceTitle "playchess.com"]
[Source "ChessBase"]
[SourceQuality "1"]
[TimeControl "40/5400+30:1800+30"]

1. e4 {[%emt 0:00:00]} c5 {[%emt 0:00:00]} 2. Nf3 {[%emt 0:00:30]} e6 {[%emt 0:00:30]} 3. d4 {[%emt 0:00:30]} cxd4 {[%emt 0:00:30]} 4. Nxd4 {[%emt 0:00:30]} Nc6 {[%emt 0:00:30]} 5. Nc3 {[%emt 0:00:30]} Qc7 {[%emt 0:00:30]} 6. g3 {[%emt 0:00:30]} a6 {[%emt 0:00:30]} 7. Bg2 {[%emt 0:00:30]} Nge7 {[%emt 0:00:30]} 8. Nde2 {[%emt 0:00:54]} b5 {[%emt 0:02:08] B47: Sicilian: Taimanov: 5 Nc3 Qc7 6 f4, 6 g3 and 6 Be2} (8... Ng6 9. b3 b5 10. Bb2 Bc5 11. O-O Bb7 12. Qd2 O-O 13. Kh1 Nce7 14. Rad1 Rad8 15. Qg5 f6 16. Qh5 {0-1 (24) Kulaots,K (2567)-Iturrizaga Bonelli,E (2653) Riga 2014}) 9. O-O {[%emt 0:01:23]} Bb7 {[%emt 0:00:29]} 10. b3 $146 {[%emt 0:04:55]} ({Predecessor:} 10. f4 f5 11. Be3 Na5 12. Bf2 Rc8 13. Nd4 b4 14. Ncb5 axb5 15. Nxb5 Qxc2 16. Nd6+ {1-0 (16) Gonzalez de la Torre,S (2245)-Manso Marquez,F (2088) Euskadi 2000}) 10... Ng6 {[%emt 0:03:00]} 11. Be3 {[%emt 0:02:51]} Rc8 {[%emt 0:11:34]} 12. f4 {[%emt 0:00:51]} Ba3 {[%emt 0:05:20]} 13. Qd2 {[%emt 0:04:14]} Nce7 {[%emt 0:12:30]} 14. Rad1 {[%emt 0:03:50]} f5 {[%emt 0:08:08]} 15. Qd4 {[%emt 0:14:04]} fxe4 {[%emt 0:10:37]} 16. Bxe4 {[%emt 0:00:08]} Bxe4 {[%emt 0:01:36]} 17. Qxe4 {[%emt 0:00:12]} O-O {[%emt 0:01:16]} 18. Rd2 {[%emt 0:01:08]} Nf5 {[%emt 0:02:08]} 19. Bf2 {[%emt 0:00:38]} Bc5 {[%emt 0:02:37]} 20. a4 {[%emt 0:07:31]} b4 {[%emt 0:06:27]} 21. Nd1 $11 {[%emt 0:00:19]} Bxf2+ {[%emt 0:03:46]} 22. Rxf2 {[%emt 0:03:58]} a5 {[%emt 0:02:03]} 23. Ne3 {[%emt 0:02:30]} Nxe3 {[%emt 0:00:38]} 24. Qxe3 {[%emt 0:00:05]} Ne7 {[%emt 0:01:42]} 25. Qd3 {[%emt 0:07:45]} Nd5 {[%emt 0:02:01]} 26. Nd4 {[%emt 0:01:19]} g6 {[%emt 0:07:58]} 27. Nb5 {[%emt 0:01:52]} Qb6 {[%emt 0:03:03]} 28. Qe4 {[%emt 0:06:57]} Rc5 {[%emt 0:02:17]} 29. Qd4 {[%emt 0:02:45]} Rfc8 {[%emt 0:02:56]} 30. Rfe2 {[%emt 0:02:38]} R8c6 {[%emt 0:02:44]} 31. Rf2 {[%emt 0:03:52]} Qb8 {[%emt 0:00:34]} 32. Kf1 {[%emt 0:16:19]} Qf8 {[%emt 0:00:28]} 33. Na7 {[%emt 0:02:42]} Rc7 {[%emt 0:00:38]} 34. Nb5 {[%emt 0:00:09]} Rc8 {[%emt 0:00:54]} 35. Na7 {[%emt 0:01:09]} Re8 {[%emt 0:00:10]} 36. Nb5 {[%emt 0:00:19]} Ra8 {[%emt 0:01:54]} 37. Kg1 {[%emt 0:00:45]} Rc6 {[%emt 0:00:18]} 38. Na7 {[%emt 0:02:25]} Rc3 {[%emt 0:00:55]} 39. Nb5 {[%emt 0:00:05]} Re3 {[%emt 0:01:27]} 40. Rfe2 {[%emt 0:01:39]} Rxe2 {[%emt 0:00:30]} 41. Rxe2 {[%emt 0:30:06]} Rc8 {[%emt 0:31:35]} 42. Rd2 {[%emt 0:00:00]} Rc5 {[%emt 0:00:00]} 43. Na7 {[%emt 0:00:00]} h6 {[%emt 0:00:00]} 44. Nb5 {[%emt 0:00:00]} Kh7 {[%emt 0:00:00]} 45. Rf2 {[%emt 0:00:00]} Nf6 {[%emt 0:00:00]} 46. Qd6 {[%emt 0:00:00]} Kg7 {[%emt 0:00:00]} 47. Rd2 {[%emt 0:00:00]} Rc6 {[%emt 0:00:00]} 48. Qxf8+ {[%emt 0:00:00]} Kxf8 {[%emt 0:00:00]} 49. Nd6 {[%emt 0:00:00]} Ke7 {[%emt 0:00:00]} 50. Nc4 {[%emt 0:00:00]} Ra6 {[%emt 0:00:00]} 51. Kg2 {[%emt 0:00:00]} g5 {[%emt 0:00:00]} 52. Kf3 {[%emt 0:00:00]} d5 {[%emt 0:00:00]} 53. Ne5 {[%emt 0:00:00]} Ne4 {[%emt 0:00:00]} 54. Rg2 {[%emt 0:00:00]} Ra8 {[%emt 0:00:00]} 55. h4 {[%emt 0:00:00]} Rc8 {[%emt 0:00:00]} 56. hxg5 {[%emt 0:00:00]} hxg5 {[%emt 0:00:00]} 57. fxg5 {[%emt 0:00:00]} Nxg5+ {[%emt 0:00:00]} 58. Kf4 {[%emt 0:00:00]} Ne4 {[%emt 0:00:00]} 59. g4 {[%emt 0:00:00]} Rf8+ {[%emt 0:00:00]} 60. Ke3 {[%emt 0:00:00]} Kd6 {[%emt 0:00:00]} 61. Nc4+ {[%emt 0:00:00]} Kc5 {[%emt 0:00:00]} 62. Nd2 {[%emt 0:00:00]} Ng5 {[%emt 0:04:59]} 63. Rh2 {[%emt 0:00:00]} Rg8 {[%emt 0:00:31]} 64. Rh5 {[%emt 0:00:04]} Kd6 {[%emt 0:00:06]} 65. Nf3 {[%emt 0:00:55]} Nxf3 {[%emt 0:01:32]} 66. Kxf3 {[%emt 0:00:04]} Rc8 {[%emt 0:00:13]} 67. Rh2 {[%emt 0:00:16]} Rc3+ {[%emt 0:00:32]} 68. Kf4 {[%emt 0:00:05]} e5+ {[%emt 0:00:07]} 69. Kg5 {[%emt 0:00:12]} e4 {[%emt 0:00:29]} 70. Kh6 {[%emt 0:01:29]} Rg3 {[%emt 0:01:31]} 71. g5 {[%emt 0:01:00]} e3 {[%emt 0:02:11]} 72. g6 {[%emt 0:00:11]} Ke5 {[%emt 0:00:38]} 73. Kh7 {[%emt 0:00:47]} Kf6 {[%emt 0:00:56]} 74. Rh4 {[%emt 0:01:34]} Rxg6 {[%emt 0:00:40]} 75. Rh3 {[%emt 0:00:36]} e2 {[%emt 0:00:50]} 76. Rf3+ {[%emt 0:00:19]} Kg5 {[%emt 0:00:51]} 77. Re3 {[%emt 0:00:14]} Rh6+ {[%emt 0:00:08]} 78. Kg7 {[%emt 0:00:11]} Rh2 {[%emt 0:00:07]} 79. Kf7 {[%emt 0:00:31]} Kf4 {[%emt 0:00:10]} 80. Re8 {[%emt 0:00:10] Ke5} 0-1